{"text_format":"2","workbook":"xlsx","n_sheets":2,"sheets":["一覧","1"],"not_rendered":{"charts":0,"images":0,"macros":0,"external_links":0,"defined_names":1,"comments":0,"pivot_tables":0},"unopened":[],"bounds":{"document_bytes":16777216,"sheet_cells":100000,"run_cost":"one","rows_first":2000,"rows_last":500,"rows_between":2000,"halvings":0,"cell_chars":16384,"cell_head_chars":4096},"cells_cut":0,"cells_raw":0,"read":"whole","date_system":"1900"}

{"sheet":"一覧","index":0,"n_rows":17,"n_cols":7,"rows_kept":17,"cut":false,"hidden":false,"merged":[]}
["#","分類１","分類２","名称","内容","状況","詳細"]
[{"$f":"ROW()-1","v":1},"通知","口座登録","口座登録催促","口座未登録のユーザーに対しメール通知",null,{"$f":"IF(ISREF(INDIRECT(A2&\"!a1\")),HYPERLINK(\"#\"&\"'\"&A2&\"'\"&\"!a1\",\"■\"),\"\")","v":"■"}]
[{"$f":"ROW()-1","v":2},{"$nulls":5},{"$f":"IF(ISREF(INDIRECT(A3&\"!a1\")),HYPERLINK(\"#\"&\"'\"&A3&\"'\"&\"!a1\",\"■\"),\"\")","v":""}]
[3,{"$nulls":5},""]
[4,{"$nulls":5},""]
[5,{"$nulls":5},""]
[6,{"$nulls":5},""]
[7,{"$nulls":5},""]
[8,{"$nulls":5},""]
[9,{"$nulls":5},""]
[10,{"$nulls":5},""]
[11,{"$nulls":5},""]
[12,{"$nulls":5},""]
[13,{"$nulls":5},""]
[14,{"$nulls":5},""]
[15,{"$nulls":5},""]
[16,{"$nulls":5},""]

{"sheet":"1","index":1,"n_rows":22,"n_cols":3,"rows_kept":22,"cut":false,"hidden":false,"merged":[]}
["■概要"]
[null,"口座未登録のユーザーに対しメール通知をする。"]
[]
["■起動タイミング"]
[null,"バッチ　毎時"]
[]
["■処理対象"]
[null,"「顧客マスタ.口座登録催促予定日時」が起動時刻と一致"]
[null,"「顧客マスタ.銀行支店コード」が未設定"]
[]
["■処理内容"]
[null,"「顧客マスタ.銀行支店コード」が未設定の場合"]
[null,null,"対象のユーザーにメール送信"]
[null,null,"「顧客マスタ.口座登録催促予定日時」を１週間後で登録"]
[null,"「顧客マスタ.銀行支店コード」が設定ずみ場合"]
[null,null,"「顧客マスタ.口座登録催促予定日時」をクリア"]
[]
[]
["■運用上の考慮"]
[null,"運用開始時に口座情報が未登録のユーザーについては、手入力にて「顧客マスタ.口座登録催促予定日時」を入力すれば通知されるようになる。"]
[null,"運用開始後に顧客マスタを新規登録する際、「顧客マスタ.口座登録催促予定日時」を設定すれば通知されるようになる。"]
[null,"通知不要の場合はクリアーすれば通知されない。"]